Workbook

Sheet Intro
A2: Smals Cloud Service Security Assessment Model
A3: VERSION: | B3: 3.0
A4: LICENSE: | B4: Creative Commons Attribution-NonCommercial-ShareAlike 4.0 International License
B5: http://creativecommons.org/licenses/by-nc-sa/4.0/
A8: Change tracking
A9: 1.0 | B9: 2014-11-28 | C9: First release
A10: 2.0 | B10: 2014-12-16 | C10: The ponderations are now locked
A11: 2.1 | B11: 2015-06-08 | C11: Some visual and security enhancements have been added
A12: 2.2 | B12: 2016-02-08 | C12: Correction of a ponderation
A13: 2.3 | B13: 2016-02-16 | C13: Correction related to the compliance with the cloud policy
A14: 2.4 | B14: 2016-04-19 | C14: Some visual and security enhancements have been added
A15: 2.5 | B15: 2017-06-28 | C15: Some modifications in the questions have been added
A16: 3.0 | B16: 2020-11-27 | C16: Revision of the questions and a clearer definition of the applicability of this model
A18: Interpretation of results
B19: Be careful with the interpretation of the scores. This evaluation form is indicative, and only a human judge should decide whether of not the evaluation is sufficiently accurate. The human judge should contact the CSP of the cloud service if (s)he needs additional information.
B20: This model and its questions aim to stimulatie critical reflection about the security and privacy risks of the provided service.
A22: How to use this template:
A23: 1. | B23: The goal of this evaluation form is allowing an entity (called the assessor) to assess the security level of a cloud service offered by a Cloud Service Provider (CSP) in 4 dimensions: - Governance - Identity and Access Management (IAM) - IT Security - Operational Security
A24: 2. | B24: Before completing the evaluation form, the assessor should be in the possession of all the publicly available information published on the official website of the cloud service, in particular a standard contract and all the available datasheets. We assume that the information found on the official website is correct.
A25: 3. | B25: The "Information" tab should be completed with general info related to the assessment: cloud service name/provider/model, the name of the assessor, and the date of the assessment.
A26: 4. | B26: The "Assessment" tab contains all the questions necessary for the evaluation of a cloud service.
A27: 4.1. | B27: The column "answer's value" contains the relative score of each expected response for each question (over 100) as a reference. The cells containing the relative scores must not be changed.
A28: 4.2. | B28: The column "score" has to be filled using the possible answers.
B29: Note: The questions must be filled according to the given order, as some questions depend on the answers given in previous questions.
B30: Note: If a score is not applicable, the option "N/A" must be chosen. This redistribute its weights over the other sub questions.
B31: Note: If the assessor does not know the answer to a question, the option "Unknown" must be chosen. This will give two different scores for one topic.
A32: 4.3. | B32: Each question has been defined with a specific weight. From the scores of each question, the final weighted scores are automatically filled (in combination with the defined weights).
A33: 4.4. | B33: There are 2 different results: the minimal weighted score and the maximal weighted score. - The minimal weighted score corresponds to the situation where all the "Unknown" responses have been replaced by the worst answer. This is the worst case of the security evaluation, considering the uncertainty of the "Unknown" responses. - The maximal weighted score corresponds to the situation where all the "Unknown" responses have been replaced by the best answer. This is the best case of the security evaluation, considering the uncertainty of the "Unknown" responses.
A34: 4.5. | B34: The two last columns grouped under "compliance with cloud policy" refer to the guarantees required by the cloud policy of the Social Security.
B35: The column "ignoring the data type" refers to the cloud policy guarantees that do not depend on the type of data to be stored in the cloud service.
B36: The column "if personal, social or medical data" refers to the additional cloud policy guarantees expected when the data to be stored in the cloud service are personal, social or medical.
A37: 5. | B37: The "Overview" tab is a visual aide for the assessor.
A38: 5.1. | B38: The chart represents the minimal and maximal weighted scores of each dimension.
A39: 5.2. | B39: The donuts represent the compliance to the cloud policy per criterion when the data type is ignored.

Sheet Information
B1: Cloud service informations
B3: Cloud service name:
B4: Cloud service provider (CSP):
B5: Evaluated by:
B6: Evaluated date:

Sheet Conditional answers (hidden)
A1: Service model | B1: Answer121 | C1: Answer131 | F1: If Answer=Unknown | G1: If Answer=No | H1: If Anwser=Never | I1: If Answer=Yes and expect a Yes/No answer | J1: If Answer=time interval | K1: If ServiceModel=SaaS | L1: If ServiceModel=PaaS | M1: If ServiceModel=IaaS | N1: Chart options
A2: SaaS | B2: Yes | C2: ≤ 6 months | F2: Unknown | G2: N/A | H2: N/A | I2: Yes | J2: Yes | K2: Yes | L2: Yes | M2: N/A | N2: Cloud service DOES satisfy
A3: PaaS | B3: No | C3: 1 year | I3: No | J3: No | K3: No | L3: No | N3: Cloud service MAY satisfy
A4: IaaS | B4: Unknown | C4: 2 years | I4: Unknown | J4: Unknown | K4: Unknown | L4: Unknown | N4: Cloud service DOES NOT satisfy
C5: > 2 years | K5: N/A | L5: N/A
C6: Never
C7: Unknown

Sheet Assessment
B1: =CONCATENATE("Assessment of ",Information!C3) -> Assessment of
B3: Category Title | C3: Answer's value | D3: Score | E3: N/A? | F3: Weight | G3: Weight | H3: Weight | I3: Weight | J3: Measured score | K3: Minimal weighted score | L3: Maximal weighted score | M3: Cloud policy compliancy outlook
B4: For more information open the outline (+ / - ) left from row number | C4: Possibility to put some description in the question's rows | D4: Select appropriate range or value for every question (select N/A if not applicable) | F4: Fixed values per subsection | G4: Dynamic values per subsection from N/A | H4: Fixed values per section | I4: Dynamic values per section from N/A | K4: Values computed automated | L4: Values computed automated | M4: Ignoring the data type
A5: 1 | B5: Governance | H5: =(H6+H56+H84+H143+H177+H202) -> 1 | I5: =(I6+I56+I84+I143+I177+I202) -> 1 | K5: =(K6+K56+K84+K143+K177+K202) -> 0 | L5: =(L6+L56+L84+L143+L177+L202) -> 0
A6: 1.1 | B6: Legal implication | E6: =IF(AND($D$7="N/A",$D$15="N/A",$D$25="N/A",$D$36="N/A",$D$47="N/A"),0,1) -> 1 | F6: =(F7+F15+F25+F36+F47) -> 1 | G6: =(G7+G15+G25+G36+G47) -> 1 | H6: 0.18 | I6: =IF(E6,H6*SUM($H$6,$H$56,$H$84,$H$143,$H$177,$H$202,)/($E$6*$H$6+$E$56*$H$56+$E$84*$H$84+$E$143*$H$143+$E$177*$H$177+$E$202*$H$202),0) -> 0.18 | K6: =(K7+K15+K25+K36+K47)*I6/100 -> 0 | L6: =(L7+L15+L25+L36+L47)*I6/100 -> 0
A7: 1.1.1 | B7: What is the physical location of data (at-rest and for processing)? | E7: =IF($D7="N/A",0,1) -> 1 | F7: 0.2 | G7: =IF(E7,F7*SUM($F$7,$F$15,$F$25,$F$36,$F$47)/($E$7*$F$7+$E$15*$F$15+$E$25*$F$25+$E$36*$F$36+$E$47*$F$47),0) -> 0.2 | J7: =IF(ISBLANK($D$7),0,VLOOKUP($D$7,$B$10:$C$13,2,0)) -> 0 | K7: =J7*G7 -> 0 | L7: =IF(ISBLANK(D7),0,IF(D7="Unknown",100*G7,J7*G7)) -> 0 | M7: =IF(D7=""," ",IF(D7=B13,"X","V")) -> 
E8: =IF($D8="N/A",0,1) -> 1
B9: Score specification | E9: 1
B10: The country of the assessor | C10: 100 | E10: 1
B11: EU | C11: 75 | E11: 1
B12: Other | C12: 25 | E12: 1
B13: Unknown | C13: 0 | E13: 1
E14: 1
A15: 1.1.2 | B15: To which jurisdiction is the service of and the contract with the CSP conform? | E15: 1 | F15: 0.2 | G15: =IF(E15,F15*SUM($F$7,$F$15,$F$25,$F$36,$F$47)/($E$7*$F$7+$E$15*$F$15+$E$25*$F$25+$E$36*$F$36+$E$47*$F$47),0) -> 0.2 | J15: =IF(ISBLANK($D$15),0,VLOOKUP($D$15,$B$18:$C$23,2,0)) -> 0 | K15: =J15*G15 -> 0 | L15: =IF(ISBLANK(D15),0,IF(D15="Unknown",100*G15,J15*G15)) -> 0 | M15: =IF(D15=B22,"X",IF(D15=B18,"V",IF(D15=B19,"V",IF(D15=B23,"??",IF(D15=B20,"V", IF(D15=B21,"X"," ")))))) -> 
E16: 1
B17: Score specification | E17: 1
B18: The country of the assessor | C18: 100 | E18: 1
B19: EU legislation | C19: 75 | E19: 1
B20: A country with a legal framework that guarantees data protection compliant with EU legislation | C20: 75 | E20: 1
B21: Substatantial data protection guaranteed by legislation and in contract, but not completely compliant with EU legislation | C21: 50
B22: Only weak or no data protection guaranteed by legislation and in contract | C22: 25 | E22: 1
B23: Unknown | C23: 0 | E23: 1
E24: 1
A25: 1.1.3 | B25: Can the CSP accomodate with the tenant's data retention requirements? | E25: 1 | F25: 0.2 | G25: =IF(E25,F25*SUM($F$7,$F$15,$F$25,$F$36,$F$47,)/($E$7*$F$7+$E$15*$F$15+$E$25*$F$25+$E$36*$F$36+$E$47*$F$47),0) -> 0.2 | J25: =IF(ISBLANK($D$25),0,VLOOKUP($D$25,$B$31:$C$34,2,0)) -> 0 | K25: =J25*G25 -> 0 | L25: =IF(ISBLANK(D25),0,IF(D25="Unknown",100*G25,J25*G25)) -> 0 | M25: =IF(D25=B32,"X",IF(D25=B31,"V",IF(D25=B34,"N/A",IF(D25=B33,"??", " ")))) -> 
E26: 1
B27: Explanations / Examples | E27: 1
B28: E.g. either do not store data more than a few months, or store data for several years. | E28: 1
E29: 1
B30: Score specification | E30: 1
B31: Yes | C31: 100 | E31: 1
B32: No | C32: 0 | E32: 1
B33: Unknown | C33: 0 | E33: 1
B34: N/A | C34: -1 | E34: 1
E35: 1
A36: 1.1.4 | B36: Can the data be given to governments outside the jurisdiction of the data controller, if requested for judicial requirements without informing the tenant or without constitutional guarantees? | E36: 1 | F36: 0.2 | G36: =IF(E36,F36*SUM($F$7,$F$15,$F$25,$F$36,$F$47)/($E$7*$F$7+$E$15*$F$15+$E$25*$F$25+$E$36*$F$36+$E$47*$F$47),0) -> 0.2 | J36: =IF(ISBLANK($D$36),0,VLOOKUP($D$36,$B$42:$C$45,2,0)) -> 0 | K36: =J36*G36 -> 0 | L36: =IF(ISBLANK(D36),0,IF(D36="Unknown",100*G36,J36*G36)) -> 0 | M36: =IF(D36=B42,"X",IF(D36=B43,"V",IF(D36=B45,"N/A",IF(D36=B44,"??", " ")))) -> 
E37: 1
B38: Explanations / Examples | E38: 1
B39: The jurisdiction of the CSP should be taken into account. | E39: 1
E40: 1
B41: Score specification | E41: 1
B42: Yes | C42: 0 | E42: 1
B43: No | C43: 100 | E43: 1
B44: Unknown | C44: 0 | E44: 1
B45: N/A | C45: -1 | E45: 1
E46: 1
A47: 1.1.5 | B47: Can the data be given to, shared with third parties, or used by the CSP for other purposes than the cloud service without the tenant’s consent? | E47: 1 | F47: 0.2 | G47: =IF(E47,F47*SUM($F$7,$F$15,$F$25,$F$36,$F$47)/($E$7*$F$7+$E$15*$F$15+$E$25*$F$25+$E$36*$F$36+$E$47*$F$47),0) -> 0.2 | J47: =IF(ISBLANK($D$47),0,VLOOKUP($D$47,$B$50:$C$53,2,0)) -> 0 | K47: =J47*G47 -> 0 | L47: =IF(ISBLANK(D47),0,IF(D47="Unknown",100*G47,J47*G47)) -> 0 | M47: =IF(D47=B50,"X",IF(D47=B51,"V",IF(D47=B53,"N/A",IF(D47=B52,"??", " ")))) -> 
B49: Score specification
B50: Yes | C50: 0
B51: No | C51: 100
B52: Unknown | C52: 0
B53: N/A | C53: -1
A56: 1.2 | B56: Supply chain management | E56: =IF(AND($D$57="N/A",$D$65="N/A",$D$76="N/A"),0,1) -> 1 | F56: =(F57+F65+F76) -> 1 | G56: =(G57+G65+G76) -> 1 | H56: 0.18 | I56: =IF(E56,H56*SUM($H$6,$H$56,$H$84,$H$143,$H$177,$H$202,)/($E$6*$H$6+$E$56*$H$56+$E$84*$H$84+$E$143*$H$143+$E$177*$H$177+$E$202*$H$202),0) -> 0.18 | K56: =(K57+K65+K76)*I56/100 -> 0 | L56: =(L57+L65+L76)*I56/100 -> 0
A57: 1.2.1 | B57: In case of subcontracting, will the CSP communicate subcontracting (e.g. name of the subcontractor) details to the tenant? | E57: =IF($D57="N/A",0,1) -> 1 | F57: 0.3333333333 | G57: =IF(E57,F57*SUM($F$57,$F$65,$F$76,)/($E$57*$F$57+$E$65*$F$65+$E$76*$F$76),0) -> 0.3333333333 | J57: =IF(ISBLANK($D$57),0,VLOOKUP($D$57,$B$60:$C$63,2,0)) -> 0 | K57: =J57*G57 -> 0 | L57: =IF(ISBLANK(D57),0,IF(D57="Unknown",100*G57,J57*G57)) -> 0 | M57: =IF(D57=B60,"V",IF(D57=B61,"X",IF(D57=B62,"??",IF(D57=B63,"N/A"," ")))) -> 
B59: Score specification
B60: Yes | C60: 100
B61: No | C61: 0
B62: Unknown | C62: 0
B63: N/A | C63: -1
A65: 1.2.2 | B65: In case of subcontracting, will the CSP inform in advance the tenant of any change in the course of the contract? | E65: =IF($D$65="N/A",0,1) -> 1 | F65: 0.3333333333 | G65: =IF(E65,F65*SUM($F$57,$F$65,$F$76,)/($E$57*$F$57+$E$65*$F$65+$E$76*$F$76),0) -> 0.3333333333 | J65: =IF(ISBLANK($D$65),0,VLOOKUP($D$65,$B$71:$C$74,2,0)) -> 0 | K65: =J65*G65 -> 0 | L65: =IF(ISBLANK(D65),0,IF(D65="Unknown",100*G65,J65*G65)) -> 0 | M65: =IF(D65=B71,"V",IF(D65=B72,"X",IF(D65=B73,"??",IF(D65=B74,"N/A"," ")))) -> 
B67: Explanations / Examples
B68: E.g. hiring a new subcontractor.
B70: Score specification
B71: Yes | C71: 100
B72: No | C72: 0
B73: Unknown | C73: 0
B74: N/A | C74: -1
A76: 1.2.3 | B76: In case of subcontracting, does the CSP guarantee contractually to remain fully responsible for his engagements, even with the hiring of subcontractors? | E76: =IF($D$76="N/A",0,1) -> 1 | F76: 0.3333333333 | G76: =IF(E76,F76*SUM($F$57,$F$65,$F$76,)/($E$57*$F$57+$E$65*$F$65+$E$76*$F$76),0) -> 0.3333333333 | J76: =IF(ISBLANK($D$76),0,VLOOKUP($D$76,$B$79:$C$82,2,0)) -> 0 | K76: =J76*G76 -> 0 | L76: =IF(ISBLANK(D76),0,IF(D76="Unknown",100*G76,J76*G76)) -> 0 | M76: =IF(D76=B79,"V",IF(D76=B80,"X",IF(D76=B81,"??",IF(D76=B82,"N/A"," ")))) -> 
B78: Score specification
B79: Yes | C79: 100
B80: No | C80: 0
B81: Unknown | C81: 0
B82: N/A | C82: -1
A84: 1.3 | B84: Audit | E84: =IF(AND($D$85="N/A",$D$96="N/A",$D$108="N/A",$D$119="N/A",$D$130="N/A"),0,1) -> 1 | F84: =(F85+F96+F108+F119+F130) -> 1 | G84: =(G85+G96+G108+G119+G130) -> 1 | H84: 0.18 | I84: =IF(E84,H84*SUM($H$6,$H$56,$H$84,$H$143,$H$177,$H$202,)/($E$6*$H$6+$E$56*$H$56+$E$84*$H$84+$E$143*$H$143+$E$177*$H$177+$E$202*$H$202),0) -> 0.18 | K84: =(K85+K96+K108+K119+K130)*I84/100 -> 0 | L84: =(L85+L96+L108+L119+L130)*I84/100 -> 0
A85: 1.3.1 | B85: At which time interval is the cloud service (including all its subcontractors) audited by a third party? | E85: =IF($D85="N/A",0,1) -> 1 | F85: 0.18 | G85: =IF(E85,F85*SUM($F$85,$F$96,$F$108,$F$119,$F$130,)/($E$85*$F$85+$E$96*$F$96+$E$108*$F$108+$E$119*$F$119+$E$130*$F$130),0) -> 0.18 | J85: =IF(ISBLANK($D$85),0,VLOOKUP($D$85,$B$88:$C$94,2,0)) -> 0 | K85: =J85*G85 -> 0 | L85: =IF(ISBLANK(D85),0,IF(D85="Unknown",100*G85,J85*G85)) -> 0 | M85: =IF(D85=B88,"V",IF(D85=B94,"??",IF(D85=""," ","X"))) -> 
B87: Score specification
B88: On request by tenant | C88: 100
B89: ≤ 6 months | C89: 80
B90: 1 year | C90: 65
B91: 2 years | C91: 35
B92: > 2 years | C92: 10
B93: Never | C93: 0
B94: Unknown | C94: 0
A96: 1.3.2 | B96: If the cloud service is audited, are the scopes of the audits accurately defined? | E96: =IF($D$96="N/A",0,1) -> 1 | F96: 0.28 | G96: =IF(E96,F96*SUM($F$85,$F$96,$F$108,$F$119,$F$130,)/($E$85*$F$85+$E$96*$F$96+$E$108*$F$108+$E$119*$F$119+$E$130*$F$130),0) -> 0.28 | J96: =IF(ISBLANK($D$96),0,VLOOKUP($D$96,$B$102:$C$106,2,0)) -> 0 | K96: =J96*G96 -> 0 | L96: =IF(ISBLANK(D96),0,IF(D96="Unknown",100*G96,J96*G96)) -> 0 | M96: =IF(D96=B104,"X",IF(D96=B105,"??",IF(D96=""," ",IF(D96=B106,"N/A","V")))) -> 
B98: Explanations / Examples
B99: The answer to this question will depend on the answer of question 1.3.1.
B101: Score specification
B102: Yes, audit definition fully defined by tenant | C102: 100
B103: Yes, but tenant has no impact on audit definition | C103: 75
B104: No | C104: 0
B105: Unknown | C105: 0
B106: N/A | C106: -1
A108: 1.3.3 | B108: At which time interval is the cloud service (including all its subcontractors) vulnerability tested, whereby critical vulnerabilites are fixed? | E108: =IF($D108="N/A",0,1) -> 1 | F108: 0.18 | G108: =IF(E108,F108*SUM($F$85,$F$96,$F$108,$F$119,$F$130,)/($E$85*$F$85+$E$96*$F$96+$E$108*$F$108+$E$119*$F$119+$E$130*$F$130),0) -> 0.18 | J108: =IF(ISBLANK($D$108),0,VLOOKUP($D$108,$B$111:$C$117,2,0)) -> 0 | K108: =J108*G108 -> 0 | L108: =IF(ISBLANK(D108),0,IF(D108="Unknown",100*G108,J108*G108)) -> 0 | M108: =IF(D108=B115,"X",IF(D108=B116,"X",IF(D108=B117,"??", IF(D108=""," ","V")))) -> 
B110: Score specification
B111: On request by the tenant | C111: 100
B112: 3 months | C112: 80
B113: 6 months | C113: 65
B114: 1 year | C114: 35
B115: > 1 year | C115: 10
B116: Never | C116: 0
B117: Unknown | C117: 0
A119: 1.3.4 | B119: Did the cloud service define an ISP (Information Security Policy) and obtain a certification for the relevant security processes? | E119: =IF($D119="N/A",0,1) -> 1 | F119: 0.18 | G119: =IF(E119,F119*SUM($F$85,$F$96,$F$108,$F$119,$F$130,)/($E$85*$F$85+$E$96*$F$96+$E$108*$F$108+$E$119*$F$119+$E$130*$F$130),0) -> 0.18 | J119: =IF(ISBLANK($D$119),0,VLOOKUP($D$119,$B$125:$C$128,2,0)) -> 0 | K119: =J119*G119 -> 0 | L119: =IF(ISBLANK(D119),0,IF(D119="Unknown",100*G119,J119*G119)) -> 0 | M119: =IF(D119=B127,"X",IF(D119=B128,"??", IF(D119=""," ","V"))) -> 
B121: Explanations / Examples
B122: E.g. certificates PCI DSS, HIPAA, ISO 27000, COBIT, SSAE16, SOC2/3, or norm ISAE 3402.
B124: Score specification
B125: Yes, only an ISP | C125: 60
B126: Yes, ISP and certification(s) | C126: 100
B127: No ISP, no certificatation(s) | C127: 0
B128: Unknown | C128: 0
A130: 1.3.5 | B130: Is there a Tier certification of data centers (especially for physical availability and security) or equivalent certification? | E130: =IF($D$130="N/A",0,1) -> 1 | F130: 0.18 | G130: =IF(E130,F130*SUM($F$85,$F$96,$F$108,$F$119,$F$130,)/($E$85*$F$85+$E$96*$F$96+$E$108*$F$108+$E$119*$F$119+$E$130*$F$130),0) -> 0.18 | J130: =IF(ISBLANK($D$130),0,VLOOKUP($D$130,$B$136:$C$141,2,0)) -> 0 | K130: =J130*G130 -> 0 | L130: =IF(ISBLANK(D130),0,IF(D130="Unknown",100*G130,J130*G130)) -> 0 | M130: =IF(D130=B140,"X",IF(D130=B141,"??", IF(D130=""," ","V"))) -> 
B132: Explanations / Examples
B133: The documents related to the Tier certification can be found at: http://uptimeinstitute.com/
B135: Score specification
B136: Tier 1 or equivalent | C136: 35
B137: Tier 2 or equivalent | C137: 60
B138: Tier 3 or equivalent | C138: 80
B139: Tier 4 or equivalent | C139: 100
B140: No Tier certification or equivalent | C140: 0
B141: Unknown | C141: 0
A143: 1.4 | B143: Business continuity | E143: =IF(AND($D$144="N/A",$D$152="N/A",$D$164="N/A"),0,1) -> 1 | F143: =(F144+F152+F164) -> 1 | G143: =(G144+G152+G164) -> 1 | H143: 0.18 | I143: =IF(E143,H143*SUM($H$6,$H$56,$H$84,$H$143,$H$177,$H$202,)/($E$6*$H$6+$E$56*$H$56+$E$84*$H$84+$E$143*$H$143+$E$177*$H$177+$E$202*$H$202),0) -> 0.18 | K143: =(K144+K152+K164)*I143/100 -> 0 | L143: =(L144+L152+L164)*I143/100 -> 0
A144: 1.4.1 | B144: Is the cloud service delivery managed under SLAs (Service Level Agreements)? | E144: =IF($D144="N/A",0,1) -> 1 | F144: 0.4 | G144: =IF(E144,F144*SUM($F$144,$F$152,$F$164,)/($E$144*$F$144+$E$152*$F$152+$E$164*$F$164),0) -> 0.4 | J144: =IF(ISBLANK($D$144),0,VLOOKUP($D$144,$B$147:$C$150,2,0)) -> 0 | K144: =J144*G144 -> 0 | L144: =IF(ISBLANK(D144),0,IF(D144="Unknown",100*G144,J144*G144)) -> 0 | M144: =IF(D144=B147,"V",IF(D144=B148,"X",IF(D144=B149,"??",IF(D144=B150,"N/A"," ")))) -> 
B146: Score specification
B147: Yes | C147: 100
B148: No | C148: 0
B149: Unknown | C149: 0
B150: N/A | C150: -1
A152: 1.4.2 | B152: Does the CSP define and implement a business continuity plan? | E152: =IF($D152="N/A",0,1) -> 1 | F152: 0.2 | G152: =IF(E152,F152*SUM($F$144,$F$152,$F$164,)/($E$144*$F$144+$E$152*$F$152+$E$164*$F$164),0) -> 0.2 | J152: =IF(ISBLANK($D$152),0,VLOOKUP($D$152,$B$159:$C$162,2,0)) -> 0 | K152: =J152*G152 -> 0 | L152: =IF(ISBLANK(D152),0,IF(D152="Unknown",100*G152,J152*G152)) -> 0 | M152: =IF(D152=B159,"V",IF(D152=B160,"X",IF(D152=B161,"??",IF(D152=B162,"N/A"," ")))) -> 
B154: Explanations / Examples
B155: This refers to the continuity of the service in case of incident.
B156: E.g. British Standard BS 25999 certificate for business continuity management.
B158: Score specification
B159: Yes | C159: 100
B160: No | C160: 0
B161: Unknown | C161: 0
B162: N/A | C162: -1
A164: 1.4.3 | B164: Is there a contractual clause that guarantees the posibility to migrate/export the data conform legislation (e.g. in a readable, standardized format). | E164: =IF($D164="N/A",0,1) -> 1 | F164: 0.4 | G164: =IF(E164,F164*SUM($F$144,$F$152,$F$164,)/($E$144*$F$144+$E$152*$F$152+$E$164*$F$164),0) -> 0.4 | J164: =IF(ISBLANK($D$164),0,VLOOKUP($D$164,$B$170:$C$175,2,0)) -> 0 | K164: =J164*G164 -> 0 | L164: =IF(ISBLANK(D164),0,IF(D164="Unknown",100*G164,J164*G164)) -> 0 | M164: =IF(D164=B170,"X",IF(D164=B174,"??",IF(D164=B175,"N/A",IF(D164=""," ","V")))) -> 
B166: Explanations / Examples
B167: The cloud service should not be a "vendor lock-in" service. The data should be in a standard format, and the data recovery should be automated as much as possible to help a potential migration to a new CSP.
B169: Score specification
B170: No | C170: 0
B171: Yes, contractually specified in a "exit clause" | C171: 50
B172: Yes with a regular and cost-efficient export of the data in practical format | C172: 80
B173: Yes with a regular and cost-efficient export of the data in an agreed or standardized, documented format | C173: 100
B174: Unknown | C174: 0
B175: N/A | C175: -1
A177: 1.5 | B177: Risk mitigation | E177: =IF(AND($D$178="N/A",$D$187="N/A",$D$195="N/A"),0,1) -> 1 | F177: =(F178+F187+F195) -> 1 | G177: =(G178+G187+G195) -> 1 | H177: 0.18 | I177: =IF(E177,H177*SUM($H$6,$H$56,$H$84,$H$143,$H$177,$H$202,)/($E$6*$H$6+$E$56*$H$56+$E$84*$H$84+$E$143*$H$143+$E$177*$H$177+$E$202*$H$202),0) -> 0.18 | K177: =(K178+K187+K195)*I177/100 -> 0 | L177: =(L178+L187+L195)*I177/100 -> 0
A178: 1.5.1 | B178: Who defines and is responsible for the implementation of risk mitigation measures of the cloud solution? | E178: =IF($D178="N/A",0,1) -> 1 | F178: 0.3 | G178: =IF(E178,F178*SUM($F$178,$F$187,$F$195,)/($E$178*$F$178+$E$187*$F$187+$E$195*$F$195),0) -> 0.3 | J178: =IF(ISBLANK($D$178),0,VLOOKUP($D$178,$B$181:$C$185,2,0)) -> 0 | K178: =J178*G178 -> 0 | L178: =IF(ISBLANK(D178),0,IF(D178="Unknown",100*G178,J178*G178)) -> 0 | M178: =IF(D178=""," ",IF(D178=B185,"??","V")) -> 
B180: Score specification
B181: Only the cloud provider | C181: 0
B182: Tenant partially defines and cloud provider is responsible for implementation | C182: 25
B183: Tenant fully defines and cloud provider is responsible for implementation | C183: 75
B184: Tenant defines and cloud provider is fully transparent about the implementation | C184: 100
B185: Unknown | C185: -1
A187: 1.5.2 | B187: When can the tenant (re-)define risk mitigation measures? | E187: =IF($D187="N/A",0,1) -> 1 | F187: 0.3 | G187: =IF(E187,F187*SUM($F$178,$F$187,$F$195,)/($E$178*$F$178+$E$187*$F$187+$E$195*$F$195),0) -> 0.3 | J187: =IF(ISBLANK($D$187),0,VLOOKUP($D$187,$B$190:$C$193,2,0)) -> 0 | K187: =J187*G187 -> 0 | L187: =IF(ISBLANK(D187),0,IF(D187="Unknown",100*G187,J187*G187)) -> 0 | M187: =IF(D187=B191,"V",IF(D187=B192,"X",IF(D187=B193,"??",IF(D187=B190,"V"," ")))) -> 
B189: Score specification
B190: At initial contract & setup | C190: 50
B191: At any time | C191: 100
B192: Never | C192: 0
B193: Unknown | C193: 0
A195: 1.5.3 | B195: Does the cloud provider have the right to unilaterally change risk mitigation measured | E195: =IF($D195="N/A",0,1) -> 1 | F195: 0.4 | G195: =IF(E195,F195*SUM($F$178,$F$187,$F$195,)/($E$178*$F$178+$E$187*$F$187+$E$195*$F$195),0) -> 0.4 | J195: =IF(ISBLANK($D$195),0,VLOOKUP($D$195,$B$198:$C$200,2,0)) -> 0 | K195: =J195*G195 -> 0 | L195: =IF(ISBLANK(D195),0,IF(D195="Unknown",100*G195,J195*G195)) -> 0 | M195: =IF(D195=B199,"V",IF(D195=B198,"X",IF(D195=B200,"??"," "))) -> 
B197: Score specification
B198: Yes | C198: 0
B199: No | C199: 100
B200: Unknown | C200: 0
A202: 1.6 | B202: Others | E202: =IF(AND($D$203="N/A",$D$211="N/A"),0,1) -> 1 | F202: =(F211)+F203 -> 1 | G202: =(G211+G203) -> 1 | H202: 0.1 | I202: =IF(E202,H202*SUM($H$6,$H$56,$H$84,$H$143,$H$177,$H$202,)/($E$6*$H$6+$E$56*$H$56+$E$84*$H$84+$E$143*$H$143+$E$177*$H$177+$E$202*$H$202),0) -> 0.1 | K202: =(K211+K203)*I202/100 -> 0 | L202: =(L211)*I202/100 -> 0
A203: 1.6.1 | B203: Is the collection and further processing of the metadata transparant, are the objectives clear and is it clear who is the owner of the data? | E203: =IF($D203="N/A",0,1) -> 1 | F203: 0.6 | G203: =IF(E203,F203*SUM($F$203,$F$211,)/($E$203*$F$203+$E$211*$F$211),0) -> 0.6 | J203: =IF(ISBLANK($D$203),0,VLOOKUP($D$203,$B$206:$C$209,2,0)) -> 0 | K203: =J203*G203 -> 0 | L203: =IF(ISBLANK(D203),0,IF(D203="Unknown",100*G203,J203*G203)) -> 0 | M203: =IF(D203=""," ",IF(D203=B208,"X",IF(D203=B209,"??","V"))) -> 
B205: Score specification
B206: Yes, processing clearly agreed with tenant | C206: 100
B207: Yes, processing potentially also used for other purposes | C207: 50
B208: No | C208: 0
B209: Unknown | C209: 0
A211: 1.6.2 | B211: Configuration and change mangement is transparent and CSP assets (hardware, software, data) are tracked throughout their lifetime in service. | E211: =IF($D211="N/A",0,1) -> 1 | F211: 0.4 | G211: =IF(E211,F211*SUM(,$F$211,)/($E$211*$F$211),0) -> 0.4 | J211: =IF(ISBLANK($D$211),0,VLOOKUP($D$211,$B$214:$C$216,2,0)) -> 0 | K211: =J211*G211 -> 0 | L211: =IF(ISBLANK(D211),0,IF(D211="Unknown",100*G211,J211*G211)) -> 0 | M211: =IF(D211=B214,"V",IF(D211=B215,"X",IF(D211=B216,"??"," "))) -> 
B213: Score specification
B214: Yes | C214: 100
B215: No | C215: 0
B216: Unknown | C216: 0
A218: 2 | B218: Identity and Access Management (IAM) | H218: =(H219+H266) -> 1 | I218: =(I219+I266) -> 1 | K218: =(K219+K266) -> 0 | L218: =(L219+L266) -> 0
A219: 2.1 | B219: CSP administrators | E219: =IF(AND($D$220="N/A",$D$231="N/A",$D$244="N/A",$D$253="N/A"),0,1) -> 1 | F219: =(F220+F231+F244+F253) -> 1 | G219: =(G220+G231+G244+G253) -> 1 | H219: 0.5 | I219: =IF(E219,H219*SUM($H$219,$H$266)/($E$219*$H$219+$E$266*$H$266),0) -> 0.5 | K219: =(K220+K231+K244+K253)*I219/100 -> 0 | L219: =(L220+L231+L244+L253)*I219/100 -> 0
A220: 2.1.1 | B220: What is the (lowest) authentication level of CSP administrators | E220: =IF($D220="N/A",0,1) -> 1 | F220: 0.25 | G220: =IF(E220,F220*SUM($F$220,$F$231,$F$244,$F$253,)/($E$220*$F$220+$E$231*$F$231+$E$244*$F$244+$E$253*$F$253),0) -> 0.25 | J220: =IF(ISBLANK($D$220),0,VLOOKUP($D$220,$B$226:$C$229,2,0)) -> 0 | K220: =J220*G220 -> 0 | L220: =IF(ISBLANK(D220),0,IF(D220="Unknown",100*G220,J220*G220)) -> 0 | M220: =IF(D220=B228,"X",IF(D220=B229,"??",IF(D220=""," ","V"))) -> 
B222: Explanations / Examples
B223: The assurance levels (low, substantial, high) are defined by the eIDAS regulation
B225: Score specification
B226: High | C226: 90
B227: Substantial | C227: 60
B228: Low | C228: 30
B229: Unknown | C229: 0
A231: 2.1.2 | B231: How strong are the authorization enforcement rules to access tenants assets (=data & code) or the CSP's system | E231: =IF($D231="N/A",0,1) -> 1 | F231: 0.25 | G231: =IF(E231,F231*SUM($F$220,$F$231,$F$244,$F$253)/($E$220*$F$220+$E$231*$F$231+$E$244*$F$244+$E$253*$F$253),0) -> 0.25 | J231: =IF(ISBLANK($D$231),0,VLOOKUP($D$231,$B$237:$C$242,2,0)) -> 0 | K231: =J231*G231 -> 0 | L231: =IF(ISBLANK(D231),0,IF(D231="Unknown",100*G231,J231*G231)) -> 0 | M231: =IF(D231=B241,"X",IF(D231=B242,"??",IF(D231=""," ","V"))) -> 
B233: Explanations / Examples
B234: Need to know: Access only to data that need to be known at the time it needs to be know Least privilige: Admins (and processes) have only the stricly required rights to perform their tasks. Separation of duties. More than one person is required to complete a task.
B236: Score specification
B237: Need to know & separation of duties | C237: 90
B238: Least privilige & separation of duties | C238: 70
B239: Need to know & no separation of duties | C239: 50
B240: Least privilige & no separation of duties | C240: 30
B241: Nothing foreseen | C241: 0
B242: Unknown | C242: 0
A244: 2.1.3 | B244: Authorization detection control to both tenants assets (=data & code) and CSP's system | E244: =IF($D244="N/A",0,1) -> 1 | F244: 0.25 | G244: =IF(E244,F244*SUM($F$220,$F$231,$F$244,$F$253)/($E$220*$F$220+$E$231*$F$231+$E$244*$F$244+$E$253*$F$253),0) -> 0.25 | J244: =IF(ISBLANK($D$244),0,VLOOKUP($D$244,$B$247:$C$251,2,0)) -> 0 | K244: =J244*G244 -> 0 | L244: =IF(ISBLANK(D244),0,IF(D244="Unknown",100*G244,J244*G244)) -> 0 | M244: =IF(D244=B250,"X",IF(D244=B251,"??",IF(D244=""," ","V"))) -> 
B246: Score specification
B247: Monitoring & logging | C247: 100
B248: Monitoring | C248: 50
B249: Logging | C249: 50
... 297 more rows

Sheet Overview
B1: =CONCATENATE("Score overview of ",Information!C3) -> Score overview of
H3: Indicative cloud policy compliance outlook
C4: Minimal weighted score | D4: Maximal weighted score | H4: Does comply | I4: May comply | J4: Does not comply
A5: 1 | B5: Governance | C5: =Assessment!K5 -> 0 | D5: =Assessment!L5 -> 0 | G5: Governance | H5: =COUNTIF(Assessment!$M$5:$M$217,"V") -> 0 | I5: =COUNTIF(Assessment!$M$5:$M$217,"??") -> 0 | J5: =COUNTIF(Assessment!$M$5:$M$217,"X") -> 0
A6: 1 | B6: IAM | C6: =Assessment!K218 -> 0 | D6: =Assessment!L218 -> 0 | G6: IAM | H6: =COUNTIF(Assessment!$M$218:$M$318,"V") -> 0 | I6: =COUNTIF(Assessment!$M$218:$M$318,"??") -> 0 | J6: =COUNTIF(Assessment!$M$218:$M$318,"X") -> 0
A7: 1 | B7: IT Security | C7: =Assessment!K319 -> 0 | D7: =Assessment!L319 -> 0 | G7: IT Security | H7: =COUNTIF(Assessment!$M$319:$M$512,"V") -> 0 | I7: =COUNTIF(Assessment!$M$319:$M$512,"??") -> 0 | J7: =COUNTIF(Assessment!$M$319:$M$512,"X") -> 0
A8: 1 | B8: Operational Security | C8: =Assessment!K513 -> 0 | D8: =Assessment!L513 -> 0 | G8: Operational Security | H8: =COUNTIF(Assessment!$M$513:$M$618,"V") -> 0 | I8: =COUNTIF(Assessment!$M$513:$M$618,"??") -> 0 | J8: =COUNTIF(Assessment!$M$513:$M$618,"X") -> 0

Sheet TempResults (hidden)
D1: Compliance with cloud policy (not depending on data type) | G1: Compliance with cloud policy (depending on data type)
B2: Minimal weighted score | C2: Maximal weighted score | D2: Does comply | E2: May comply | F2: Does not comply | G2: Does comply | H2: May comply | I2: Does not comply | J2: Name of the cloud service
A3: Governance | B3: =Assessment!K5 -> 0 | C3: =Assessment!L5 -> 0 | D3: =COUNTIF(Assessment!$M$5:$M$217,"V") -> 0 | E3: =COUNTIF(Assessment!$M$5:$M$217,"??") -> 0 | F3: =COUNTIF(Assessment!$M$5:$M$217,"X") -> 0 | G3: =D3 -> 0 | H3: 0 | I3: 0 | J3: =Information!C3 -> 0
A4: IAM | B4: =Assessment!K218 -> 0 | C4: =Assessment!L218 -> 0 | D4: =COUNTIF(Assessment!$M$218:$M$318,"V") -> 0 | E4: =COUNTIF(Assessment!$M$218:$M$318,"??") -> 0 | F4: =COUNTIF(Assessment!$M$218:$M$318,"X") -> 0 | G4: 0 | H4: 0 | I4: 0
A5: IT Security | B5: =Assessment!K319 -> 0 | C5: =Assessment!L319 -> 0 | D5: =COUNTIF(Assessment!$M$319:$M$512,"V") -> 0 | E5: =COUNTIF(Assessment!$M$319:$M$512,"??") -> 0 | F5: =COUNTIF(Assessment!$M$319:$M$512,"X") -> 0 | G5: =COUNTIF(Assessment!#REF!,"V")+D5 ->  | H5: =COUNTIF(Assessment!#REF!,"??")+E5 ->  | I5: =COUNTIF(Assessment!#REF!,"X")+F5 -> 
A6: Operational Security | B6: =Assessment!K513 -> 0 | C6: =Assessment!L513 -> 0 | D6: =COUNTIF(Assessment!$M$513:$M$618,"V") -> 0 | E6: =COUNTIF(Assessment!$M$513:$M$618,"??") -> 0 | F6: =COUNTIF(Assessment!$M$513:$M$618,"X") -> 0 | G6: =D6 -> 0 | H6: =E6 -> 0 | I6: =F6 -> 0
